[Event "ONJK 2024 ABC"]
[Site "Velp, Netherlands"]
[Date "2024.08.03"]
[Round "2.2"]
[White "Bernfeld, Ben"]
[Black "Musabayeva, Diana"]
[Result "1/2-1/2"]
[TimeControl "90 minutes + 30 seconds"]
[WhiteElo "1438"]
[BlackElo "1871"]

1. e4 {[%clk 01:30:56]} {[%emt 00:00:03]} c5 {[%clk 01:30:59]} {[%emt
00:00:02]} 2. c3 {[%clk 01:31:22]} {[%emt 00:00:04]} Nf6 {[%clk 01:31:24]}
{[%emt 00:00:05]} 3. e5 {[%clk 01:31:48]} {[%emt 00:00:04]} Nd5 {[%clk
01:31:50]} {[%emt 00:00:03]} 4. d4 {[%clk 01:32:13]} {[%emt 00:00:05]} cxd4
{[%clk 01:32:13]} {[%emt 00:00:08]} 5. Nf3 {[%clk 01:32:39]} {[%emt 00:00:04]}
d6 {[%clk 01:32:09]} {[%emt 00:00:33]} 6. exd6 {[%clk 01:33:01]} {[%emt
00:00:08]} e6 {[%clk 01:31:42]} {[%emt 00:00:57]} 7. Nxd4 {[%clk 01:32:24]}
{[%emt 00:01:08]} Bxd6 {[%clk 01:30:43]} {[%emt 00:01:29]} 8. Nd2 {[%clk
01:28:03]} {[%emt 00:04:50]} O-O {[%clk 01:28:45]} {[%emt 00:02:28]} 9. Nc4
{[%clk 01:26:33]} {[%emt 00:02:01]} Bf4 {[%clk 01:25:15]} {[%emt 00:03:59]} 10.
Bxf4 {[%clk 01:19:32]} {[%emt 00:07:31]} Nxf4 {[%clk 01:25:43]} {[%emt
00:00:02]} 11. g3 {[%clk 01:19:32]} {[%emt 00:00:31]} Ng6 {[%clk 01:22:34]}
{[%emt 00:03:38]} 12. Bg2 {[%clk 01:17:48]} {[%emt 00:02:15]} Qc7 {[%clk
01:19:40]} {[%emt 00:03:24]} 13. Qb3 {[%clk 01:08:16]} {[%emt 00:10:03]} a6
{[%clk 01:17:11]} {[%emt 00:02:58]} 14. O-O {[%clk 01:02:46]} {[%emt 00:06:00]}
e5 {[%clk 01:13:35]} {[%emt 00:04:05]} 15. Nc2 {[%clk 00:59:21]} {[%emt
00:03:55]} Nd7 {[%clk 01:04:27]} {[%emt 00:09:38]} 16. Rad1 {[%clk 00:49:55]}
{[%emt 00:09:56]} Rb8 {[%clk 01:01:20]} {[%emt 00:03:36]} 17. N2e3 {[%clk
00:44:16]} {[%emt 00:06:10]} b5 {[%clk 00:58:02]} {[%emt 00:03:48]} 18. Nd6
{[%clk 00:40:59]} {[%emt 00:03:47]} Nc5 {[%clk 00:56:23]} {[%emt 00:02:09]} 19.
Qd5 {[%clk 00:32:19]} {[%emt 00:09:11]} Be6 {[%clk 00:49:46]} {[%emt 00:07:06]}
20. Qc6 {[%clk 00:31:38]} {[%emt 00:01:11]} Qxc6 {[%clk 00:44:13]} {[%emt
00:06:03]} 21. Bxc6 {[%clk 00:32:02]} {[%emt 00:00:06]} Bxa2 {[%clk 00:43:59]}
{[%emt 00:00:43]} 22. Ra1 {[%clk 00:31:41]} {[%emt 00:00:51]} Bb3 {[%clk
00:41:18]} {[%emt 00:03:12]} 23. Ne4 {[%clk 00:23:12]} {[%emt 00:08:59]} Na4
{[%clk 00:35:00]} {[%emt 00:06:47]} 24. Ra3 {[%clk 00:20:46]} {[%emt 00:02:57]}
Ne7 {[%clk 00:32:43]} {[%emt 00:02:47]} 25. Bd7 {[%clk 00:18:53]} {[%emt
00:02:23]} Rfd8 {[%clk 00:32:37]} {[%emt 00:00:36]} 26. Bg4 {[%clk 00:17:47]}
{[%emt 00:01:35]} Bd5 {[%clk 00:32:15]} {[%emt 00:00:51]} 27. b3 {[%clk
00:16:13]} {[%emt 00:02:06]} Bxe4 {[%clk 00:29:46]} {[%emt 00:03:00]} 28. bxa4
{[%clk 00:16:35]} {[%emt 00:00:07]} Rd3 {[%clk 00:27:25]} {[%emt 00:02:50]} 29.
Rc1 {[%clk 00:14:53]} {[%emt 00:02:11]} f5 {[%clk 00:24:54]} {[%emt 00:03:01]}
30. Be2 {[%clk 00:14:04]} {[%emt 00:01:19]} Rd2 {[%clk 00:24:09]} {[%emt
00:01:15]} 31. Kf1 {[%clk 00:13:21]} {[%emt 00:01:13]} f4 {[%clk 00:22:15]}
{[%emt 00:02:24]} 32. Ng4 {[%clk 00:11:18]} {[%emt 00:02:33]} f3 {[%clk
00:16:51]} {[%emt 00:05:54]} 33. Bd1 {[%clk 00:11:04]} {[%emt 00:00:45]} Nc6
{[%clk 00:15:09]} {[%emt 00:02:12]} 34. Ke1 {[%clk 00:10:05]} {[%emt 00:01:28]}
Rbd8 {[%clk 00:15:01]} {[%emt 00:00:38]} 35. axb5 {[%clk 00:09:06]} {[%emt
00:01:30]} axb5 {[%clk 00:14:54]} {[%emt 00:00:37]} 36. Bb3+ {[%clk 00:08:46]}
{[%emt 00:00:51]} Kf8 {[%clk 00:14:25]} {[%emt 00:00:59]} 37. Rd1 {[%clk
00:07:42]} {[%emt 00:01:33]} Re2+ {[%clk 00:13:33]} {[%emt 00:01:22]} 38. Kf1
{[%clk 00:08:04]} {[%emt 00:00:08]} Bd3 {[%clk 00:13:15]} {[%emt 00:00:48]} 39.
Kg1 {[%clk 00:07:28]} {[%emt 00:01:07]} Ke7 {[%clk 00:13:22]} {[%emt 00:00:21]}
40. Ra6 {[%clk 00:07:29]} {[%emt 00:00:29]} Bc4 {[%clk 00:11:37]} {[%emt
00:02:15]} 41. Rf1 {[%clk 00:05:30]} {[%emt 00:02:30]} Bxb3 {[%clk 00:11:15]}
{[%emt 00:00:51]} 42. Rxc6 {[%clk 00:05:55]} {[%emt 00:00:05]} Bc4 {[%clk
00:09:50]} {[%emt 00:01:55]} 43. Ra1 {[%clk 00:05:13]} {[%emt 00:01:12]} Ra8
{[%clk 00:08:24]} {[%emt 00:01:56]} 44. Rd1 {[%clk 00:04:39]} {[%emt 00:01:05]}
Rd8 {[%clk 00:07:29]} {[%emt 00:01:25]} 45. Ra1 {[%clk 00:04:57]} {[%emt
00:00:12]} h5 {[%clk 00:06:21]} {[%emt 00:01:37]} 46. Ne3 {[%clk 00:04:54]}
{[%emt 00:00:34]} Rdd2 {[%clk 00:04:56]} {[%emt 00:01:55]} 47. Nxc4 {[%clk
00:03:57]} {[%emt 00:01:27]} bxc4 {[%clk 00:05:21]} {[%emt 00:00:06]} 48. Rxc4
{[%clk 00:03:31]} {[%emt 00:00:55]} Rxf2 {[%clk 00:05:28]} {[%emt 00:00:23]} 49.
Ra6 {[%clk 00:02:23]} {[%emt 00:01:39]} Rg2+ {[%clk 00:05:46]} {[%emt
00:00:11]} 50. Kf1 {[%clk 00:02:47]} {[%emt 00:00:05]} Rd1# {[%clk 00:05:39]}
{[%emt 00:00:06]} 1/2-1/2

[Event "ONJK 2024 ABC"]
[Site "Velp, Netherlands"]
[Date "2024.08.03"]
[Round "2.3"]
[White "De Vries, Arjan"]
[Black "Leenen, Boyd"]
[Result "0-1"]
[TimeControl "90 minutes + 30 seconds"]
[WhiteElo "1843"]
[BlackElo "1921"]

1. e4 {[%clk 01:30:54]} {[%emt 00:00:05]} e5 {[%clk 01:30:55]} {[%emt
00:00:06]} 2. Nf3 {[%clk 01:31:18]} {[%emt 00:00:07]} Nc6 {[%clk 01:31:20]}
{[%emt 00:00:04]} 3. Bc4 {[%clk 01:31:44]} {[%emt 00:00:04]} Bc5 {[%clk
01:31:41]} {[%emt 00:00:08]} 4. d3 {[%clk 01:32:09]} {[%emt 00:00:06]} d6
{[%clk 01:32:00]} {[%emt 00:00:12]} 5. Nc3 {[%clk 01:31:52]} {[%emt 00:00:46]}
Bg4 {[%clk 01:31:49]} {[%emt 00:00:41]} 6. h3 {[%clk 01:31:31]} {[%emt
00:00:51]} Bh5 {[%clk 01:31:53]} {[%emt 00:00:25]} 7. Na4 {[%clk 01:30:38]}
{[%emt 00:01:24]} Bb6 {[%clk 01:31:25]} {[%emt 00:00:59]} 8. c3 {[%clk
01:29:49]} {[%emt 00:01:18]} Nge7 {[%clk 01:27:50]} {[%emt 00:04:05]} 9. g4
{[%clk 01:26:01]} {[%emt 00:04:18]} Bg6 {[%clk 01:28:11]} {[%emt 00:00:09]} 10.
Nh4 {[%clk 01:25:02]} {[%emt 00:01:28]} Qd7 {[%clk 01:20:47]} {[%emt 00:07:54]}
11. Qf3 {[%clk 01:23:21]} {[%emt 00:02:12]} Ba5 {[%clk 01:11:02]} {[%emt
00:10:15]} 12. Bd2 {[%clk 01:21:00]} {[%emt 00:02:50]} a6 {[%clk 01:10:06]}
{[%emt 00:01:27]} 13. b4 {[%clk 01:07:11]} {[%emt 00:14:19]} b5 {[%clk
01:09:49]} {[%emt 00:00:47]} 14. Nxg6 {[%clk 01:06:58]} {[%emt 00:00:42]} Nxg6
{[%clk 01:10:07]} {[%emt 00:00:13]} 15. Bd5 {[%clk 01:06:02]} {[%emt 00:01:25]}
bxa4 {[%clk 01:10:05]} {[%emt 00:00:33]} 16. bxa5 {[%clk 01:06:15]} {[%emt
00:00:16]} Rb8 {[%clk 01:09:48]} {[%emt 00:00:48]} 17. Bxc6 {[%clk 00:44:58]}
{[%emt 00:21:47]} Qxc6 {[%clk 01:10:10]} {[%emt 00:00:08]} 18. O-O {[%clk
00:45:04]} {[%emt 00:00:24]} O-O {[%clk 01:09:22]} {[%emt 00:01:18]} 19. Rab1
{[%clk 00:44:42]} {[%emt 00:00:52]} Qc5 {[%clk 01:04:16]} {[%emt 00:05:36]} 20.
Qe3 {[%clk 00:41:32]} {[%emt 00:03:40]} Rxb1 {[%clk 00:49:09]} {[%emt
00:15:37]} 21. Rxb1 {[%clk 00:41:56]} {[%emt 00:00:06]} Qa3 {[%clk 00:49:30]}
{[%emt 00:00:10]} 22. Qe1 {[%clk 00:31:32]} {[%emt 00:10:53]} Qxa2 {[%clk
00:47:33]} {[%emt 00:02:27]} 23. Qc1 {[%clk 00:30:53]} {[%emt 00:01:09]} Nh4
{[%clk 00:45:27]} {[%emt 00:02:36]} 24. Be3 {[%clk 00:27:54]} {[%emt 00:03:28]}
a3 {[%clk 00:39:36]} {[%emt 00:06:22]} 25. Kf1 {[%clk 00:26:26]} {[%emt
00:01:58]} h5 {[%clk 00:38:11]} {[%emt 00:01:55]} 26. Ra1 {[%clk 00:25:46]}
{[%emt 00:01:10]} Qe6 {[%clk 00:38:21]} {[%emt 00:00:20]} 27. Qd1 {[%clk
00:24:48]} {[%emt 00:01:28]} a2 {[%clk 00:36:14]} {[%emt 00:02:37]} 28. c4
{[%clk 00:24:37]} {[%emt 00:00:41]} Rb8 {[%clk 00:31:23]} {[%emt 00:05:20]} 29.
Rxa2 {[%clk 00:24:51]} {[%emt 00:00:17]} c6 {[%clk 00:30:20]} {[%emt 00:01:33]}
30. Bg5 {[%clk 00:23:49]} {[%emt 00:01:32]} Ng6 {[%clk 00:30:24]} {[%emt
00:00:26]} 31. Kg2 {[%clk 00:22:40]} {[%emt 00:01:39]} h4 {[%clk 00:27:33]}
{[%emt 00:03:21]} 32. Be3 {[%clk 00:22:20]} {[%emt 00:00:50]} d5 {[%clk
00:26:53]} {[%emt 00:01:10]} 33. Qc2 {[%clk 00:19:44]} {[%emt 00:03:06]} Qd6
{[%clk 00:23:46]} {[%emt 00:03:36]} 34. Rb2 {[%clk 00:19:13]} {[%emt 00:01:02]}
Rxb2 {[%clk 00:23:45]} {[%emt 00:00:32]} 35. Qxb2 {[%clk 00:19:38]} {[%emt
00:00:04]} dxe4 {[%clk 00:24:01]} {[%emt 00:00:13]} 36. dxe4 {[%clk 00:19:49]}
{[%emt 00:00:19]} Qd3 {[%clk 00:24:24]} {[%emt 00:00:08]} 37. Kf3 {[%clk
00:16:58]} {[%emt 00:03:21]} Qxc4 {[%clk 00:23:41]} {[%emt 00:01:14]} 38. Qb6
{[%clk 00:17:10]} {[%emt 00:00:17]} Kh7 {[%clk 00:22:31]} {[%emt 00:01:39]} 39.
Qb1 {[%clk 00:16:22]} {[%emt 00:01:19]} Qc3 {[%clk 00:21:03]} {[%emt 00:01:56]}
40. Qb6 {[%clk 00:16:09]} {[%emt 00:00:45]} Qd3 {[%clk 00:20:26]} {[%emt
00:01:07]} 41. Qc7 {[%clk 00:12:59]} {[%emt 00:03:40]} f6 {[%clk 00:15:20]}
{[%emt 00:05:36]} 42. Kg2 {[%clk 00:12:50]} {[%emt 00:00:38]} Qxe4+ {[%clk
00:15:41]} {[%emt 00:00:11]} 43. Kf1 {[%clk 00:13:15]} {[%emt 00:00:04]} Qh1+
{[%clk 00:15:45]} {[%emt 00:00:26]} 44. Ke2 {[%clk 00:13:40]} {[%emt 00:00:04]}
Qe4 {[%clk 00:15:15]} {[%emt 00:00:59]} 45. Kf1 {[%clk 00:13:51]} {[%emt
00:00:21]} Nf4 {[%clk 00:15:05]} {[%emt 00:00:40]} 46. Bxf4 {[%clk 00:13:44]}
{[%emt 00:00:37]} exf4 {[%clk 00:15:25]} {[%emt 00:00:09]} 47. Qb6 {[%clk
00:13:50]} {[%emt 00:00:24]} f3 {[%clk 00:14:45]} {[%emt 00:01:10]} 48. Kg1
{[%clk 00:14:17]} {[%emt 00:00:04]} Qe1+ {[%clk 00:14:56]} {[%emt 00:00:19]} 49.
Kh2 {[%clk 00:14:44]} {[%emt 00:00:04]} Qf1 {[%clk 00:15:18]} {[%emt 00:00:06]}
0-1

[Event "ONJK 2024 ABC"]
[Site "Velp, Netherlands"]
[Date "2024.08.03"]
[Round "2.4"]
[White "Decraene, Lotus"]
[Black "Blokzijl, Ruben"]
[Result "1-0"]
[TimeControl "90 minutes + 30 seconds"]
[WhiteElo "1799"]
[BlackElo "1743"]

1. e4 {[%clk 01:30:58]} {[%emt 00:00:01]} d6 {[%clk 01:30:54]} {[%emt
00:00:06]} 2. d4 {[%clk 01:30:37]} {[%emt 00:00:51]} Nf6 {[%clk 01:31:18]}
{[%emt 00:00:06]} 3. Nc3 {[%clk 01:30:20]} {[%emt 00:00:47]} e5 {[%clk
01:31:35]} {[%emt 00:00:13]} 4. dxe5 {[%clk 01:29:38]} {[%emt 00:01:12]} dxe5
{[%clk 01:31:59]} {[%emt 00:00:06]} 5. Qxd8+ {[%clk 01:29:54]} {[%emt
00:00:14]} Kxd8 {[%clk 01:32:24]} {[%emt 00:00:05]} 6. Nf3 {[%clk 01:29:15]}
{[%emt 00:01:08]} Bd6 {[%clk 01:32:36]} {[%emt 00:00:19]} 7. Bc4 {[%clk
01:27:07]} {[%emt 00:02:38]} Ke8 {[%clk 01:32:32]} {[%emt 00:00:34]} 8. Bg5
{[%clk 01:13:46]} {[%emt 00:13:51]} Nbd7 {[%emt 00:06:10]} 9. O-O-O {[%clk
01:08:10]} {[%emt 00:00:02]} a6 {[%clk 01:32:32]} {[%emt 00:00:56]} 10. Rhe1
{[%clk 01:04:24]} {[%emt 00:04:15]} b5 {[%clk 01:29:57]} {[%emt 00:03:05]} 11.
Bd5 {[%clk 01:00:01]} {[%emt 00:04:53]} Nxd5 {[%clk 01:28:40]} {[%emt
00:01:47]} 12. Nxd5 {[%clk 00:57:22]} {[%emt 00:03:09]} f6 {[%clk 01:28:19]}
{[%emt 00:00:51]} 13. Be3 {[%clk 00:56:08]} {[%emt 00:01:45]} Bb7 {[%clk
01:26:09]} {[%emt 00:02:40]} 14. Nh4 {[%clk 00:55:34]} {[%emt 00:01:02]} g6
{[%clk 01:23:04]} {[%emt 00:03:36]} 15. g3 {[%clk 00:47:50]} {[%emt 00:08:14]}
Bxd5 {[%clk 01:14:25]} {[%emt 00:09:10]} 16. Rxd5 {[%clk 00:45:54]} {[%emt
00:02:26]} Ke7 {[%clk 01:14:38]} {[%emt 00:00:16]} 17. f4 {[%clk 00:45:49]}
{[%emt 00:00:36]} c6 {[%clk 01:11:48]} {[%emt 00:03:20]} 18. Rd3 {[%emt
00:27:16]} Rad8 {[%clk 00:54:37]} 19. Red1 {[%clk 00:35:15]} {[%emt 00:01:58]}
Nc5 {[%clk 00:47:42]} {[%emt 00:07:26]} 20. Rxd6 {[%clk 00:33:16]} {[%emt
00:02:28]} 1-0

[Event "ONJK 2024 ABC"]
[Site "Velp, Netherlands"]
[Date "2024.08.03"]
[Round "2.5"]
[White "Hesse, Lucas"]
[Black "Faybish, Dana"]
[Result "0-1"]
[TimeControl "90 minutes + 30 seconds"]
[WhiteElo "1708"]
[BlackElo "1707"]

1. e4 {[%clk 01:30:59]} c5 {[%clk 01:30:42]} {[%emt 00:00:19]} 2. Nf3 {[%clk
01:31:13]} {[%emt 00:00:15]} d6 {[%clk 01:30:41]} {[%emt 00:00:31]} 3. d4
{[%clk 01:31:37]} {[%emt 00:00:07]} cxd4 {[%emt 00:00:25]} 4. Nxd4 {[%clk
01:31:52]} {[%emt 00:00:12]} Nf6 {[%clk 01:30:23]} {[%emt 00:00:56]} 5. Nc3
{[%clk 01:32:02]} {[%emt 00:00:19]} g6 {[%clk 01:29:38]} {[%emt 00:01:15]} 6.
Bg5 {[%clk 01:30:40]} {[%emt 00:01:52]} Bg7 {[%clk 01:28:34]} {[%emt 00:01:34]}
7. Bc4 {[%clk 01:29:56]} {[%emt 00:01:15]} a6 {[%clk 01:22:24]} {[%emt
00:06:39]} 8. O-O {[%clk 01:29:24]} {[%emt 00:01:02]} O-O {[%clk 01:22:04]}
{[%emt 00:00:50]} 9. Re1 {[%clk 01:28:27]} {[%emt 00:01:27]} Nbd7 {[%clk
01:19:44]} {[%emt 00:02:50]} 10. Nf3 {[%clk 01:27:22]} {[%emt 00:01:35]} Rb8
{[%clk 01:13:49]} {[%emt 00:06:24]} 11. e5 {[%clk 01:24:21]} {[%emt 00:03:31]}
dxe5 {[%clk 01:09:06]} {[%emt 00:05:13]} 12. Nxe5 {[%clk 01:24:10]} {[%emt
00:00:42]} Nxe5 {[%clk 01:02:32]} {[%emt 00:07:04]} 13. Rxe5 {[%clk 01:24:29]}
{[%emt 00:00:11]} Qc7 {[%clk 00:59:12]} {[%emt 00:03:48]} 14. Qe2 {[%clk
01:22:08]} {[%emt 00:02:53]} Ng4 {[%clk 00:53:07]} {[%emt 00:06:34]} 15. Rxe7
{[%clk 01:21:24]} {[%emt 00:01:15]} Qxh2+ {[%clk 00:53:14]} {[%emt 00:00:22]}
16. Kf1 {[%clk 01:21:21]} {[%emt 00:00:34]} Qh1# {[%clk 00:53:35]} {[%emt
00:00:09]} 17. Bc1 {[%emt 00:00:14]} 0-1

[Event "ONJK 2024 ABC"]
[Site "Velp, Netherlands"]
[Date "2024.08.03"]
[Round "2.6"]
[White "Vagenende, Lars"]
[Black "Madularea, David"]
[Result "0-1"]
[TimeControl "90 minutes + 30 seconds"]
[WhiteElo "1686"]
[BlackElo "2190"]

1. e4 {[%clk 01:30:58]} {[%emt 00:00:01]} c5 {[%clk 01:30:22]} {[%emt
00:00:38]} 2. c3 {[%clk 01:31:11]} {[%emt 00:00:16]} e6 {[%clk 01:30:06]}
{[%emt 00:00:46]} 3. d4 {[%clk 01:30:29]} {[%emt 00:01:13]} d5 {[%clk
01:30:31]} {[%emt 00:00:05]} 4. exd5 {[%clk 01:27:07]} {[%emt 00:03:53]} exd5
{[%clk 01:30:47]} {[%emt 00:00:13]} 5. Nf3 {[%clk 01:26:24]} {[%emt 00:01:12]}
a6 {[%clk 01:31:12]} {[%emt 00:00:06]} 6. Be3 {[%clk 01:24:58]} {[%emt
00:01:56]} b6 {[%clk 01:24:19]} {[%emt 00:07:23]} 7. Nbd2 {[%clk 01:18:23]}
{[%emt 00:07:05]} Bd6 {[%clk 01:17:37]} {[%emt 00:07:12]} 8. dxc5 {[%clk
01:14:10]} {[%emt 00:04:42]} Bxc5 {[%clk 01:16:07]} {[%emt 00:02:01]} 9. Nd4
{[%clk 01:12:08]} {[%emt 00:02:33]} Nf6 {[%clk 01:15:26]} {[%emt 00:01:10]} 10.
Bd3 {[%clk 01:09:19]} {[%emt 00:03:19]} O-O {[%clk 01:15:28]} {[%emt 00:00:27]}
11. O-O {[%clk 01:07:58]} {[%emt 00:01:53]} Ng4 {[%clk 01:10:38]} {[%emt
00:05:19]} 12. N2b3 {[%clk 00:55:08]} {[%emt 00:13:20]} Bd6 {[%clk 00:54:19]}
{[%emt 00:16:50]} 13. h3 {[%clk 00:48:37]} {[%emt 00:07:00]} Nxe3 {[%clk
00:53:48]} {[%emt 00:01:01]} 14. fxe3 {[%clk 00:48:59]} {[%emt 00:00:08]} Qg5
{[%clk 00:53:31]} {[%emt 00:00:47]} 15. Qf3 {[%clk 00:47:51]} {[%emt 00:01:37]}
g6 {[%clk 00:48:47]} {[%emt 00:05:14]} 16. e4 {[%clk 00:42:55]} {[%emt
00:05:26]} Nd7 {[%clk 00:44:33]} {[%emt 00:04:44]} 17. Nc6 {[%clk 00:40:37]}
{[%emt 00:02:48]} Bb7 {[%clk 00:38:29]} {[%emt 00:06:35]} 18. exd5 {[%clk
00:37:36]} {[%emt 00:03:31]} Bxc6 {[%clk 00:38:20]} {[%emt 00:00:39]} 19. dxc6
{[%clk 00:34:28]} {[%emt 00:03:38]} Ne5 {[%clk 00:38:43]} {[%emt 00:00:07]} 20.
Qe4 {[%clk 00:31:25]} {[%emt 00:03:33]} Qg3 {[%clk 00:37:02]} {[%emt 00:02:11]}
21. Be2 {[%clk 00:28:09]} {[%emt 00:03:45]} Nxc6 {[%clk 00:09:31]} {[%emt
00:28:01]} 22. Qxc6 {[%clk 00:23:04]} {[%emt 00:05:35]} Rae8 {[%clk 00:09:58]}
{[%emt 00:00:04]} 23. Qf3 {[%clk 00:21:56]} {[%emt 00:01:38]} Qh2+ {[%clk
00:10:24]} {[%emt 00:00:04]} 24. Kf2 {[%clk 00:22:12]} {[%emt 00:00:14]} Bg3+
{[%clk 00:10:52]} {[%emt 00:00:02]} 25. Qxg3 {[%clk 00:21:42]} {[%emt
00:00:59]} Rxe2+ {[%clk 00:11:19]} {[%emt 00:00:04]} 26. Kxe2 {[%clk 00:21:26]}
{[%emt 00:00:46]} Qxg3 {[%clk 00:11:43]} {[%emt 00:00:05]} 27. Rf2 {[%clk
00:20:44]} {[%emt 00:01:12]} Re8+ {[%clk 00:12:04]} {[%emt 00:00:10]} 28. Kf1
{[%clk 00:21:04]} {[%emt 00:00:10]} Qh2 {[%clk 00:12:30]} {[%emt 00:00:03]} 29.
Rd2 {[%clk 00:19:26]} {[%emt 00:02:09]} Re6 {[%clk 00:12:24]} {[%emt 00:00:36]}
30. Rad1 {[%clk 00:17:42]} {[%emt 00:02:14]} Rf6+ {[%clk 00:12:42]} {[%emt
00:00:12]} 31. Rf2 {[%clk 00:17:43]} {[%emt 00:00:29]} Qh1+ {[%clk 00:13:07]}
{[%emt 00:00:05]} 32. Ke2 {[%clk 00:17:46]} {[%emt 00:00:27]} Rxf2+ {[%clk
00:13:31]} {[%emt 00:00:06]} 0-1

[Event "ONJK 2024 ABC"]
[Site "Velp, Netherlands"]
[Date "2024.08.03"]
[Round "2.7"]
[White "Blok, Xaveer"]
[Black "Vertongen, Jack"]
[Result "1-0"]
[TimeControl "90 minutes + 30 seconds"]
[WhiteElo "1885"]
[BlackElo "1674"]

1. e4 {[%clk 01:30:55]} {[%emt 00:00:04]} e5 {[%clk 01:30:55]} {[%emt
00:00:05]} 2. Nf3 {[%clk 01:31:20]} {[%emt 00:00:05]} Nc6 {[%clk 01:31:21]}
{[%emt 00:00:05]} 3. d4 {[%clk 01:31:45]} {[%emt 00:00:05]} exd4 {[%clk
01:31:44]} {[%emt 00:00:07]} 4. Nxd4 {[%clk 01:32:11]} {[%emt 00:00:04]} Bc5
{[%clk 01:31:50]} {[%emt 00:00:24]} 5. Be3 {[%clk 01:32:34]} {[%emt 00:00:07]}
Bb6 {[%clk 01:30:40]} {[%emt 00:01:41]} 6. Bc4 {[%clk 01:30:03]} {[%emt
00:02:59]} d6 {[%clk 01:27:15]} {[%emt 00:03:56]} 7. O-O {[%clk 01:21:33]}
{[%emt 00:09:00]} Nf6 {[%clk 01:20:28]} {[%emt 00:07:17]} 8. Nc3 {[%clk
01:19:09]} {[%emt 00:02:53]} Bd7 {[%clk 01:09:04]} {[%emt 00:11:54]} 9. h3
{[%clk 01:17:20]} {[%emt 00:02:19]} Qe7 {[%clk 01:03:24]} {[%emt 00:06:10]} 10.
Re1 {[%clk 01:09:13]} {[%emt 00:08:37]} h6 {[%clk 00:57:37]} {[%emt 00:06:19]}
11. Nd5 {[%clk 01:05:52]} {[%emt 00:03:50]} Nxd5 {[%clk 00:51:24]} {[%emt
00:06:41]} 12. exd5 {[%clk 01:05:57]} {[%emt 00:00:25]} Ne5 {[%clk 00:51:00]}
{[%emt 00:00:54]} 13. Nb5 {[%clk 00:58:12]} {[%emt 00:08:17]} Ba5 {[%clk
00:37:42]} {[%emt 00:13:47]} 14. Bd2 {[%clk 00:56:42]} {[%emt 00:02:00]} Bxd2
{[%clk 00:35:57]} {[%emt 00:02:16]} 15. Qxd2 {[%clk 00:57:03]} {[%emt
00:00:09]} Kd8 {[%clk 00:31:45]} {[%emt 00:04:42]} 16. Qc3 {[%clk 00:53:38]}
{[%emt 00:03:53]} Qf6 {[%clk 00:26:22]} {[%emt 00:05:52]} 17. Be2 {[%clk
00:52:11]} {[%emt 00:01:58]} Bxb5 {[%clk 00:25:33]} {[%emt 00:01:21]} 18. Bxb5
{[%clk 00:52:32]} {[%emt 00:00:09]} a6 {[%clk 00:25:26]} {[%emt 00:00:38]} 19.
Ba4 {[%clk 00:52:33]} {[%emt 00:00:29]} Nd7 {[%clk 00:23:04]} {[%emt 00:02:51]}
20. Qe3 {[%clk 00:49:52]} {[%emt 00:03:10]} b5 {[%clk 00:19:04]} {[%emt
00:04:31]} 21. Bb3 {[%clk 00:49:25]} {[%emt 00:00:57]} Nc5 {[%clk 00:17:38]}
{[%emt 00:01:55]} 22. a4 {[%clk 00:46:26]} {[%emt 00:03:31]} Nxb3 {[%clk
00:17:11]} {[%emt 00:00:57]} 23. Qxb3 {[%clk 00:46:39]} {[%emt 00:00:17]} Rb8
{[%clk 00:15:28]} {[%emt 00:02:11]} 24. c4 {[%clk 00:43:25]} {[%emt 00:03:45]}
b4 {[%clk 00:14:47]} {[%emt 00:01:13]} 25. a5 {[%clk 00:42:42]} {[%emt
00:01:13]} Qd4 {[%clk 00:14:00]} {[%emt 00:01:16]} 26. Re3 {[%clk 00:41:24]}
{[%emt 00:01:49]} Re8 {[%clk 00:07:29]} {[%emt 00:07:02]} 27. Rae1 {[%clk
00:40:48]} {[%emt 00:01:05]} Re5 {[%clk 00:05:51]} {[%emt 00:02:06]} 28. Rxe5
{[%clk 00:39:28]} {[%emt 00:01:52]} dxe5 {[%clk 00:06:19]} {[%emt 00:00:04]} 29.
Qg3 {[%clk 00:38:54]} {[%emt 00:01:03]} e4 {[%clk 00:03:14]} {[%emt 00:03:36]}
30. Qh4+ {[%clk 00:38:22]} {[%emt 00:01:01]} Kd7 {[%clk 00:02:36]} {[%emt
00:01:09]} 31. Qxe4 {[%clk 00:36:55]} {[%emt 00:01:55]} Qxe4 {[%clk 00:02:57]}
{[%emt 00:00:11]} 32. Rxe4 {[%clk 00:37:20]} {[%emt 00:00:04]} Kd6 {[%emt
00:00:15]} 33. b3 {[%clk 00:37:41]} {[%emt 00:00:06]} c6 {[%clk 00:02:23]}
{[%emt 00:01:23]} 34. dxc6 {[%clk 00:36:13]} {[%emt 00:01:57]} Kxc6 {[%clk
00:02:52]} 35. Re7 {[%clk 00:36:30]} {[%emt 00:00:14]} Rf8 {[%clk 00:03:46]}
{[%emt 00:02:50]} 36. Rb7 {[%clk 00:34:36]} {[%emt 00:01:56]} Kc5 {[%clk
00:04:19]} {[%emt 00:00:10]} 37. Kf1 {[%clk 00:34:58]} {[%emt 00:00:08]} g5
{[%clk 00:04:30]} {[%emt 00:00:20]} 38. Ke2 {[%emt 00:02:57]} f5 {[%clk
00:04:24]} 39. Rc7+ {[%clk 00:31:08]} {[%emt 00:02:28]} Kd6 {[%clk 00:04:24]}
{[%emt 00:00:26]} 40. Ra7 {[%clk 00:31:28]} {[%emt 00:00:14]} Kc5 {[%clk
00:04:44]} {[%emt 00:00:08]} 41. Rxa6 {[%clk 00:29:58]} {[%emt 00:02:02]} Re8+
{[%clk 00:05:00]} {[%emt 00:00:15]} 42. Kd2 {[%clk 00:30:05]} {[%emt 00:00:22]}
Rd8+ {[%clk 00:05:27]} {[%emt 00:00:04]} 43. Kc1 {[%clk 00:29:29]} {[%emt
00:01:06]} Rd3 {[%clk 00:05:00]} {[%emt 00:00:55]} 44. Kc2 {[%clk 00:24:09]}
{[%emt 00:05:51]} Rc3+ {[%clk 00:05:25]} {[%emt 00:00:07]} 45. Kb2 {[%clk
00:24:33]} {[%emt 00:00:06]} Rd3 {[%clk 00:05:48]} {[%emt 00:00:06]} 46. Rxh6
{[%clk 00:22:11]} {[%emt 00:02:51]} Rd2+ {[%clk 00:06:13]} {[%emt 00:00:07]} 47.
Kc1 {[%clk 00:21:46]} {[%emt 00:00:55]} Rxf2 {[%clk 00:06:31]} {[%emt
00:00:12]} 48. Rf6 {[%clk 00:21:52]} {[%emt 00:00:23]} Kd4 {[%clk 00:06:08]}
{[%emt 00:00:53]} 49. a6 {[%clk 00:21:06]} {[%emt 00:01:16]} Kc3 {[%clk
00:06:15]} {[%emt 00:00:24]} 50. Kd1 {[%clk 00:21:09]} {[%emt 00:00:27]} Kxb3
{[%clk 00:06:31]} {[%emt 00:00:14]} 51. c5 {[%clk 00:18:45]} {[%emt 00:02:54]}
Ra2 {[%clk 00:03:51]} {[%emt 00:03:10]} 52. Rb6 {[%clk 00:18:44]} {[%emt
00:00:31]} Kc3 {[%clk 00:03:44]} {[%emt 00:00:37]} 53. c6 {[%clk 00:17:53]}
{[%emt 00:01:21]} Kd3 {[%clk 00:01:06]} {[%emt 00:03:08]} 54. Kc1 {[%clk
00:18:11]} {[%emt 00:00:12]} Kc3 {[%emt 00:00:30]} 55. Rxb4 {[%clk 00:13:33]}
{[%emt 00:05:07]} Kxb4 {[%clk 00:00:49]} {[%emt 00:00:50]} 56. c7 {[%clk
00:13:46]} {[%emt 00:00:16]} Ra5 {[%clk 00:00:00]} {[%emt 00:00:49]} {time} 1-0